fUSD/lending_fUSD_20240815
["ID","MTS","AMOUNT","RATE_DAILY","PERIOD"]
[334990919,1723715432510,-6119.08032344,0.00020707,4]
[334990920,1723715432521,-1000.0,0.00020717,2]
[334990921,1723715432530,-500.0,0.00020769,2]
[334990922,1723715432540,-500.0,0.00020776,2]
[334990923,1723715432549,-200.0,0.0002083,2]
[334990924,1723715432559,-1000.0,0.00021,2]
[334990925,1723715432569,-500.0,0.00021018,2]
[334990926,1723715432579,-500.0,0.00021024,2]
[334990927,1723715432588,-500.0,0.00021105,2]
[334990928,1723715432597,-155.0,0.00021117,2]
[334990929,1723715432607,-200.0,0.0002119,2]
[334990930,1723715432617,-227.6,0.00021194,2]
[334990931,1723715432627,-1764.72554699,0.00021213,2]
[334990932,1723715432636,-500.0,0.00021289,2]
[334990933,1723715432646,-7217.3519641,0.00021289,4]
[334990934,1723715432656,-1802.33924,0.0002131,2]
[334990935,1723715432666,-500.0,0.00021378,2]
[334990936,1723715432676,-6119.08032344,0.00021389,4]
[334990937,1723715432686,-177.04,0.00021393,2]
[334990938,1723715432695,-676.56219276,0.00021399,2]
[334990939,1723715432705,-167.0,0.00021401,2]
[334990940,1723715432714,-500.0,0.00021411,2]
[334990941,1723715432724,-1187.0,0.000215,2]
[334990942,1723715432734,-200.0,0.0002156,2]
[334990943,1723715432744,-500.0,0.000216,2]
[334990944,1723715432753,-175.16669618,0.000216,2]
[334990945,1723715432763,-167.0,0.00021687,2]
[334990946,1723715432772,-200.16,0.00021693,2]
[334990947,1723715432782,-228.696513,0.00021756,2]
[334990948,1723715432792,-500.0,0.00021795,2]
[334990949,1723715432801,-500.0,0.000218,2]
[334990950,1723715432810,-3722.0,0.00021844,2]
[334990951,1723715432820,-6119.08032344,0.00021889,4]
[334990952,1723715432830,-7217.3519641,0.00021889,4]
[334990953,1723715432839,-626.77938752,0.00021899,2]
[334990954,1723715432849,-288.0,0.000219,2]
[334990955,1723715432858,-985.0,0.000219,2]
[334990956,1723715432868,-200.0,0.000219,2]
[334990957,1723715432877,-4890.97884081,0.000219,2]
[334990958,1723715432887,-2534.18383302,0.00021917,2]
[334990959,1723715432896,-805.27,0.00021918,2]
[334990960,1723715432906,-154.75,0.00021918,2]
[334990961,1723715432916,-200.0,0.0002193,2]
[334990962,1723715432926,-500.0,0.00021937,2]
[334990963,1723715432935,-6119.08032344,0.00021986,4]
[334990964,1723715432944,-500.0,0.00021989,2]
[334990965,1723715432955,-7217.3519641,0.0002199,4]
[334990966,1723715432965,-747.80986147,0.00021996,2]
[334990967,1723715432974,-151.49,0.00022,2]
[334990968,1723715432985,-151.49,0.00022,2]
[334990969,1723715432994,-151.49,0.00022,2]
[334990970,1723715433004,-151.49,0.00022,2]
[334990971,1723715433014,-647.16182356,0.00022014,2]
[334990972,1723715433023,-3000.0,0.000222,2]
[334990973,1723715433032,-200.0,0.000223,2]
[334990974,1723715433042,-500.0,0.00022305,2]
[334990975,1723715433051,-500.0,0.00022412,2]
[334990976,1723715433061,-500.0,0.00022464,2]
[334990977,1723715433070,-500.0,0.00022488,2]
[334990978,1723715433079,-6119.08032344,0.0002249,4]
[334990979,1723715433088,-7217.3519641,0.00022492,4]
[334990980,1723715433098,-1000.0,0.00022502,2]
[334990981,1723715433107,-169.3,0.00022549,2]
[334990982,1723715433116,-200.0,0.0002266,2]
[334990983,1723715433126,-154.5,0.00022759,2]
[334990984,1723715433136,-500.0,0.0002286,2]
[334990985,1723715433149,-2110.0,0.00022933,30]
[334990986,1723715433158,-175.16669618,0.0002295,2]
[334990987,1723715433168,-300.0,0.00023,2]
[334990988,1723715433177,-200.0,0.00023,2]
[334990989,1723715433186,-500.0,0.00023022,2]
[334990990,1723715433197,-200.0,0.0002303,2]
[334990991,1723715433207,-500.0,0.00023067,2]
[334990992,1723715433216,-151.49,0.0002308,2]
[334990993,1723715433229,-6119.08032344,0.0002309,4]
[334990994,1723715433239,-796.56499259,0.000231,2]
[334990995,1723715433248,-796.56499259,0.000231,2]
[334990996,1723715433258,-154.75,0.00023135,2]
[334990997,1723715433267,-167.0,0.00023167,2]
[334990998,1723715433276,-500.0,0.00023178,2]
[334990999,1723715433286,-180.0,0.00023205,2]
[334991000,1723715433296,-7217.3519641,0.0002325,4]
[334991001,1723715433305,-901.663,0.0002326,4]
[334991002,1723715433315,-901.663,0.0002326,4]
[334991003,1723715433325,-901.663,0.0002326,4]
[334991004,1723715433335,-901.664,0.0002326,4]
[334991005,1723715433345,-901.663,0.0002326,4]
[334991006,1723715433354,-367.34377443,0.00023293,2]
[334991007,1723715433364,-227.6,0.00023313,2]
[334991008,1723715433374,-183.97398846,0.00023395,2]
[334991009,1723715433383,-451.0975308,0.00023398,2]
[334991010,1723715433392,-200.0,0.000234,2]
[334991011,1723715433402,-2110.0,0.00023433,30]
[334991012,1723715433412,-6119.08032344,0.00023468,4]
[334991013,1723715433421,-200.0,0.00023473,2]
[334991014,1723715433431,-200.0,0.00023473,2]
[334991015,1723715433441,-6119.08032344,0.00023477,4]
[334991016,1723715433450,-7217.3519641,0.00023477,4]
[334991017,1723715433460,-151.49,0.00023477,2]
[334991018,1723715433469,-151.49,0.00023477,2]
[334991019,1723715433479,-151.49,0.00023477,2]
[334991020,1723715433488,-36714.4819406,0.00023488,4]
[334991021,1723715433497,-194868.503031,0.00023488,4]
[334991022,1723715433506,-151.49,0.00023488,2]
[334991023,1723715433516,-151.49,0.00023488,2]
[334991024,1723715433525,-151.49,0.00023488,2]
[334991025,1723715433535,-151.49,0.00023488,2]
[334991026,1723715433545,-151.49,0.00023488,2]
[334991027,1723715433554,-151.49,0.00023488,2]
[334991028,1723715433563,-151.49,0.00023488,2]
[334991029,1723715433573,-151.49,0.00023488,2]
[334991030,1723715433582,-151.49,0.00023488,2]
[334991031,1723715433592,-151.49,0.00023488,2]
[334991032,1723715433601,-155.33247637,0.00023495,2]
[334991033,1723715433611,-180716.0,0.00023498,4]
[334991034,1723715433621,-180716.0,0.00023498,4]
[334991035,1723715433630,-180716.001,0.00023498,4]
[334991036,1723715433640,-180716.001,0.00023498,4]
[334991037,1723715433652,-180716.0,0.00023498,4]
[334991038,1723715433661,-1620.2067912,0.0002354,2]
[334991039,1723715433671,-451.09753077,0.00023548,2]
[334991040,1723715433680,-150.0,0.00023587,2]
[334991041,1723715433690,-500.0,0.00023612,2]
[334991042,1723715433699,-151.49,0.00023624,2]
[334991043,1723715433709,-1710.447,0.00023634,2]
[334991044,1723715433718,-557.303,0.00023634,2]
[334991045,1723715433728,-270.606,0.00023634,2]
[334991046,1723715433738,-1136.0,0.00023634,2]
[334991047,1723715433748,-811.851,0.00023634,2]
[334991048,1723715433758,-1898.423,0.00023634,2]
[334991049,1723715433767,-164.971,0.00023634,2]
[334991050,1723715433777,-551.0,0.00023634,2]
[334991051,1723715433786,-3298.577,0.00023634,2]
[334991052,1723715433796,-301.488,0.00023634,2]
[334991053,1723715433805,-1254.028,0.00023634,2]
[334991054,1723715433815,-289.683,0.00023634,2]
[334991055,1723715433824,-5147.82,0.00023634,2]
[334991056,1723715433834,-2355.317,0.00023634,2]
[334991057,1723715433843,-4385.68720061,0.00023634,2]
[334991061,1723715437944,-544.689393,0.0002,2]
[334991062,1723715437953,-487.87,0.00023467,3]
[334991063,1723715437963,-660.67879939,0.00023634,2]
[334991064,1723715437973,-1674.801,0.00023634,2]
[334991065,1723715437983,-1078.564,0.00023634,2]
[334991066,1723715437992,-1828.12729033,0.00023699,2]
[334991067,1723715438002,-451.09753077,0.00023699,2]
[334991068,1723715438012,-13780.31165577,0.000237,2]
[334991069,1723715438021,-926.25003442,0.0002372,2]
[334991070,1723715438031,-150.0,0.00023729,2]
[334991071,1723715438040,-2000.0,0.00023735,2]
[334991072,1723715438050,-200.0,0.00023735,2]
[334991073,1723715438060,-302.59630359,0.00023735,2]
[334991074,1723715438070,-1383.27852747,0.00023735,2]
[334991075,1723715438079,-294.64747768,0.00023735,2]
[334991076,1723715438089,-3411.86723559,0.00023735,2]
[334991077,1723715438340,-197.33,0.00018241,2]
[334991078,1723715438350,-3558.95149305,0.00023735,2]
[334991102,1723715439879,-316.83560636,0.00013688,2]
[334991103,1723715439889,-197.33,0.00018241,2]
[334991104,1723715439899,-197.33,0.00018241,2]
[334991105,1723715439909,-165.85728834,0.00018241,2]
[334991107,1723715440255,-31.47271166,0.00018241,2]
[334991108,1723715440264,-197.33,0.00018241,2]
[334991109,1723715440275,-197.33,0.00018241,2]
[334991110,1723715440284,-197.33,0.00018241,2]
[334991111,1723715440294,-197.33,0.00018241,2]
[334991112,1723715440305,-197.33,0.00018241,2]
[334991127,1723715440491,-544.689393,0.00020822,2]
[334991129,1723715440508,-544.689393,0.00021644,2]
[334991131,1723715440518,-150.0,0.00023634,2]
[334991133,1723715440528,-1186.3004232,0.00023735,2]
[334991280,1723715443474,-197.33,0.00018241,2]
[334991282,1723715443484,-197.33,0.00018241,2]
[334991284,1723715443495,-197.33,0.00018241,2]
[334991286,1723715443504,-197.33,0.00018241,2]
[334991288,1723715443514,-197.33,0.00018241,2]
[334991290,1723715443524,-197.33,0.00018241,2]
[334991292,1723715443533,-197.33,0.000188,2]
[334991294,1723715443543,-197.33,0.00018831,2]
[334991296,1723715443553,-500.0,0.00018999,2]
[334991298,1723715443562,-500.0,0.00018999,2]
[334991300,1723715443571,-500.0,0.00018999,2]
[334991301,1723715443581,-500.0,0.00018999,2]
[334991303,1723715443590,-220.95108025,0.00018999,2]
[334991305,1723715443599,-500.0,0.00018999,2]
[334991306,1723715443608,-500.0,0.00018999,2]
[334991308,1723715443618,-500.0,0.00018999,2]
[334991310,1723715443627,-500.0,0.00018999,2]
[334991312,1723715443636,-626.54482262,0.00018999,2]
[334991314,1723715443646,-544.689393,0.00022466,2]
[334991316,1723715443656,-544.689393,0.00023288,2]
[334991318,1723715443665,-1634.99335386,0.00023735,2]
[334991320,1723715443675,-3874.60579567,0.00023735,2]
[334991356,1723715444174,-11507.72447502,0.00023735,2]
[334991357,1723715444184,-5017.9357,0.00023735,2]
[334991358,1723715444194,-262.5942,0.00023735,2]
[334991359,1723715444203,-200.0,0.0002377,2]
[334991361,1723715444212,-151.49,0.0002379,2]
[334991363,1723715444222,-151.49,0.0002379,2]
[334991365,1723715444232,-165686.53563568,0.000238,2]
[334991367,1723715444241,-150.0,0.0002381,2]
[334991369,1723715444251,-1802.33924,0.0002381,2]
[334991371,1723715444260,-771.0,0.00023814,2]
[334991373,1723715444269,-500.0,0.00023822,2]
[334991375,1723715444279,-150.0,0.00023824,2]
[334991377,1723715444290,-151.49,0.00023825,2]
[334991379,1723715444299,-151.49,0.00023825,2]
[334991381,1723715444309,-151.49,0.00023825,2]
[334991383,1723715444331,-151.49,0.00023825,2]
[334991385,1723715444342,-151.49,0.00023825,2]
[334991387,1723715444351,-151.49,0.00023825,2]
[334991389,1723715444360,-151.49,0.00023825,2]
[334991391,1723715444369,-500.0,0.00023831,2]
[334991393,1723715444380,-155.33247637,0.00023832,2]
[334991395,1723715444389,-45038.12827293,0.00023835,11]
[334991559,1723715446015,-197.33,0.0001897,2]
[334991561,1723715446028,-197.33,0.0001898,2]
[334991563,1723715446039,-197.33,0.0001898,2]
[334991565,1723715446050,-197.33,0.0001898,2]
[334991567,1723715446059,-197.33,0.0001898,2]
[334991569,1723715446069,-197.33,0.0001898,2]
[334991571,1723715446079,-197.33,0.0001898,2]
[334991573,1723715446089,-197.33,0.0001898,2]
[334991575,1723715446098,-197.33,0.0001898,2]
[334991577,1723715446107,-197.33,0.0001898,2]
[334991578,1723715446116,-197.33,0.0001898,2]
[334991580,1723715446125,-500.0,0.00023813,2]
[334991582,1723715446134,-676.20171416,0.00023835,11]
[334991636,1723715590191,7244.6679,0.00012951,2]
[334991639,1723716207786,550.0,0.0001,2]
[334991641,1723716376453,775.9702395,0.00012121,2]
[334991642,1723716389740,3436.54001953,0.00012901,2]
[334991643,1723716399192,2215.52370993,0.00012938,2]
[334991644,1723716415146,5403.00141948,0.00012613,2]
[334991645,1723716425324,2342.45587798,0.00012938,2]
[334991646,1723716545904,2200.59357442,0.00012938,2]
[334991650,1723716594283,2111.63219542,0.00012938,2]
[334991651,1723716596350,536.3843632,0.00012966,2]
[334991654,1723716616915,10742.04021264,0.00013,2]
[334991657,1723716631845,-892.04452683,0.00013001,2]
[334991658,1723716631854,-155.483224,0.00013042,2]
[334991659,1723716631863,-7.33296977,0.00013052,2]
[334991660,1723716631879,-290.09044472,0.00013052,2]
[334991661,1723716631888,-651.3186622,0.00013052,2]
[334991662,1723716631900,-47.54154353,0.00013052,2]
[334991663,1723716631909,-179.4623719,0.00013052,2]
[334991664,1723716631919,-155.0,0.00013052,2]
[334991665,1723716631928,-0.31359912,0.00013052,2]
[334991666,1723716631939,-154.92408417,0.00013052,2]
[334991667,1723716631948,-1138.87080337,0.00013052,2]
[334991668,1723716631957,-293.40508157,0.00013086,2]
[334991669,1723716631967,-155.2535165,0.00013086,2]
[334991670,1723716631976,-256.29162633,0.00013086,2]
[334991671,1723716631985,-155.0,0.00013086,2]
[334991672,1723716631995,-155.235023,0.00013086,2]
[334991673,1723716632005,-235.95346244,0.00013086,2]
[334991674,1723716632014,-261.61114158,0.00013086,2]
[334991675,1723716632024,-155.31513396,0.00013086,2]
[334991676,1723716632033,-275.1054945,0.00013086,2]
[334991677,1723716632043,-155.35631393,0.00013086,2]
[334991678,1723716632052,-155.0,0.00013086,2]
[334991679,1723716632062,-255.13733329,0.00013086,2]
[334991680,1723716632071,-309.89325485,0.00013086,2]
[334991681,1723716632080,-156.27131137,0.00013086,2]
[334991682,1723716632089,-440.02330588,0.00013086,2]
[334991683,1723716632098,-159.58732349,0.00013292,2]
[334991684,1723716632108,-155.28826361,0.00013292,2]
[334991685,1723716632117,-305.00194793,0.00013292,2]
[334991686,1723716632127,-211.03413449,0.00013292,2]
[334991687,1723716632136,-109.72471565,0.0001339,2]
[334991688,1723716632147,-40.27528435,0.0001339,2]
[334991689,1723716632157,-209.32492847,0.00013391,2]
[334991690,1723716632166,-155.0,0.00013391,2]
[334991691,1723716632176,-528.80773361,0.00013391,2]
[334991692,1723716632185,-162.95196994,0.00013688,2]
[334991693,1723716632194,-316.83560636,0.0001385,2]
[334991694,1723716632204,-316.83560636,0.0001385,2]
[334991695,1723716632214,-4973.72347921,0.00013861,2]
[334991696,1723716632239,-370.75591567,0.0001385,2]
[334991697,1723716632249,-3770.97042894,0.00013861,2]
[334991698,1723716632258,-286.11,0.00013861,2]
[334991699,1723716632267,-415.46431527,0.0001387,2]
[334991700,1723716632277,-175.02110761,0.00013971,2]
[334991701,1723716632286,-154.14,0.00013973,2]
[334991702,1723716632295,-159.41,0.00013973,2]
[334991703,1723716632305,-5163.38,0.00013973,2]
[334991704,1723716632315,-3294.169,0.00014219,2]
[334991705,1723716632324,-155.2330577,0.00014234,2]
[334991706,1723716632334,-251.24245723,0.00014235,2]
[334991707,1723716632343,-531.16504504,0.00014398,2]
[334991708,1723716632354,-480.3271257,0.00014509,2]
[334991709,1723716632367,-19.6628743,0.00014509,2]
[334991710,1723716632377,-370.17799837,0.00014509,2]
[334991711,1723716632388,-3422.04110642,0.00014509,2]
[334991712,1723716632400,-472.14322502,0.00014509,2]
[334991713,1723716632411,-846.08694448,0.00014509,2]
[334991714,1723716632423,-340.62072571,0.00014509,2]
[334991715,1723716632432,-167.48963496,0.00014509,2]
[334991716,1723716632443,-243.88036504,0.00014509,2]
[334991717,1723716632453,-206.15670796,0.00014509,2]
[334991718,1723716632464,-208.8538917,0.00014509,2]
[334991719,1723716632473,-81.30947189,0.00014509,2]
[334991720,1723716632484,-2261.14640609,0.00014509,2]
[334991721,1723716632493,-523.33093654,0.00014517,2]
[334991722,1723716632503,-546.93040052,0.00014681,2]
[334991723,1723716632512,-155.0,0.00014753,2]
[334991724,1723716632522,-185.00937477,0.00014753,2]
[334991725,1723716632531,-155.0,0.00015349,2]
[334991726,1723716632541,-197.09206619,0.00015682,2]
[334991727,1723716632551,-250.0,0.00016497,2]
[334991728,1723716632563,-329.53077088,0.00016505,2]
[334991729,1723716632575,-472.44922912,0.00016505,2]
[334991730,1723716632585,-200.0,0.00016556,2]
[334991731,1723716632594,-177.05,0.00016569,2]
[334991732,1723716632603,-747.73,0.00016679,2]
[334991733,1723716632612,-8670.01720472,0.00016866,2]
[334991734,1723716632624,-3255.09037,0.00016866,2]
[334991735,1723716632634,-401.44091038,0.00016866,2]
[334991736,1723716632645,-292.52138008,0.00016866,2]
[334991737,1723716632657,-1349.01223289,0.00016866,2]
[334991738,1723716632668,-432.000004,0.00016866,2]
[334991739,1723716632678,-1797.61002149,0.00016866,2]
[334991740,1723716632689,-3434.7094964,0.00016866,2]
[334991741,1723716632700,-2000.0,0.00016866,2]
[334991742,1723716632715,-1601.38575,0.00016866,2]
[334991743,1723716632726,-2525.29263004,0.00016866,2]
[334991744,1723716632735,-11202.77,0.00016952,2]
[334991745,1723716632745,-249.02,0.00017601,2]
[334991746,1723716632754,-167.0,0.00017905,2]
[334991747,1723716632763,-300.0,0.00017917,2]
[334991748,1723716632772,-647.16182356,0.00019,2]
[334991749,1723716632781,-23880.0,0.00019211,2]
[334991750,1723716632790,-2751.0,0.00019211,2]
[334991751,1723716632799,-169.3,0.00019249,2]
[334991752,1723716632809,-300.0,0.00019287,2]
[334991753,1723716632818,-250.0,0.00019315,2]
[334991754,1723716632827,-249.02,0.00019865,2]
[334991755,1723716632838,-927.65311101,0.00020806,2]
[334991756,1723716632847,-500.0,0.00021334,2]
[334991757,1723716632858,-1000.0,0.00021428,2]
[334991758,1723716632867,-330.61,0.00021453,2]
[334991759,1723716632876,-15795.17243538,0.00021453,2]
[334991760,1723716632896,-2294.10756462,0.00021453,2]
[334991761,1723716632905,-500.0,0.00021892,2]
[334991762,1723716632914,-329.0,0.000219,2]
[334991763,1723716632924,-107.57875096,0.000219,2]
[334991764,1723716632936,-892.42124904,0.000219,2]
[334991765,1723716632946,-289.25170393,0.000219,2]
[334991766,1723716632956,-154.75,0.00021918,2]
[334991767,1723716632965,-103.61960934,0.00021981,2]
[334991768,1723716632978,-466.97277237,0.00021981,2]
[334991769,1723716632989,-384.75941619,0.0002204,2]
[334991770,1723716632999,-249.02,0.00022129,2]
[334991771,1723716633008,-154.14,0.00022174,2]
[334991772,1723716633017,-3000.0,0.000222,2]
[334991773,1723716633027,-500.0,0.00022357,2]
[334991774,1723716633036,-500.0,0.00022429,2]
[334991775,1723716633045,-150.0,0.00022684,2]
[334991776,1723716633054,-5474.66961647,0.00022702,2]
[334991777,1723716633064,-671.05,0.00022802,2]
[334991778,1723716633073,-4061.0161956,0.0002288,2]
[334991779,1723716633085,-1413.65342084,0.0002288,2]
[334991780,1723716633094,-150.0,0.00022957,2]
[334991781,1723716633104,-150.0,0.00022969,2]
[334991782,1723716633113,-3152.96012718,0.00023058,2]
[334991783,1723716633125,-889.15149544,0.00023058,2]
[334991784,1723716633137,-250.0,0.00023058,2]
[334991785,1723716633149,-562.4996314,0.00023058,2]
[334991786,1723716633164,-439.59640459,0.00023058,2]
[334991787,1723716633176,-180.46195783,0.00023058,2]
[334991788,1723716633185,-150.0,0.00023149,2]
[334991789,1723716633195,-150.0,0.00023167,2]
[334991790,1723716633204,-500.0,0.0002319,2]
[334991791,1723716633214,-180.0,0.00023205,2]
[334991792,1723716633224,-150.0,0.00023221,2]
[334991793,1723716633233,-1839.74319294,0.00023237,2]
[334991794,1723716633245,-3634.9264235,0.00023237,2]
[334991795,1723716633254,-500.0,0.00023258,2]
[334991796,1723716633265,-500.0,0.00023325,2]
[334991797,1723716633274,-500.0,0.00023367,2]
[334991798,1723716633284,-399.81996742,0.00023367,2]
[334991799,1723716633293,-150.0,0.00023404,2]
[334991800,1723716633303,-4065.66846057,0.00023415,2]
[334991801,1723716633314,-1409.00115587,0.00023415,2]
[334991802,1723716633324,-150.0,0.00023435,2]
[334991803,1723716633333,-150.0,0.00023447,2]
[334991804,1723716633342,-154.75,0.00023483,2]
[334991805,1723716633351,-150.0,0.00023486,2]
[334991806,1723716633360,-150.0,0.00023539,2]
[334991807,1723716633371,-2780.08729667,0.00023557,4]
[334991808,1723716633384,-572.22134393,0.00023557,4]
[334991809,1723716633395,-299.6900001,0.00023557,4]
[334991810,1723716633406,-141.83115983,0.00023557,4]
[334991811,1723716633416,-3793.82980053,0.00023564,4]
[334991812,1723716633426,-7587.65960106,0.00023566,4]
[334991813,1723716633435,-150.0,0.00023568,2]
[334991814,1723716633444,-150.0,0.00023578,2]
[334991815,1723716633454,-150.0,0.00023579,2]
[334991816,1723716633463,-150.0,0.00023585,2]
[334991817,1723716633472,-1903.65249,0.0002359,2]
[334991818,1723716633482,-167.0,0.00023607,2]
[334991819,1723716633492,-175.16669618,0.00023635,2]
[334991820,1723716633502,-500.0,0.00023652,2]
[334991821,1723716633511,-150.0,0.00023655,2]
[334991822,1723716633521,-37938.2980053,0.00023705,4]
[334991823,1723716633530,-37938.2980053,0.00023715,4]
[334991824,1723716633539,-598.92913295,0.00023723,31]
[334991825,1723716633548,-150.0,0.00023724,2]
[334991826,1723716633558,-303.87407993,0.00023725,2]
[334991827,1723716633571,-37938.2980053,0.00023725,4]
[334991828,1723716633580,-33336.3907,0.00023725,2]
[334991829,1723716633761,-183.97398844,0.00023735,2]
[334991830,1723716633770,-256.3785692,0.00023735,2]
[334991831,1723716633780,-257.7700176,0.00023735,2]
[334991832,1723716633790,-36500.0866,0.00023735,2]
[334991833,1723716633799,-156.4355,0.00023735,2]
[334991834,1723716633809,-1000.0,0.00023735,2]
[334991835,1723716633819,-150.0,0.0002376,2]
[334991836,1723716633828,-500.0,0.00023769,2]
[334991837,1723716633837,-500.0,0.00023778,2]
[334991838,1723716633847,-303.87407993,0.00023783,2]
[334991839,1723716633856,-3793.82980053,0.00023785,4]
[334991840,1723716633866,-500.0,0.00023787,2]
[334991841,1723716633876,-3793.82980053,0.00023794,4]
[334991842,1723716633886,-500.0,0.00023795,2]
[334991843,1723716633895,-150.0,0.00023797,2]
[334991844,1723716633904,-2258.0,0.000238,2]
[334991845,1723716633914,-495.0,0.000238,7]
[334991846,1723716633924,-193.0,0.000238,7]
[334991847,1723716633933,-367.34377443,0.00023802,2]
[334991848,1723716633943,-500.0,0.00023804,2]
[334991849,1723716633952,-7587.65960106,0.00023805,4]
[334991850,1723716633962,-763.0,0.00023814,2]
[334991851,1723716633972,-151.0,0.00023815,7]
[334991852,1723716633981,-15175.3192021,0.00023815,4]
[334991853,1723716633991,-151.49,0.00023815,2]
[334991854,1723716634001,-151.49,0.00023815,2]
[334991855,1723716634011,-3793.82980053,0.00023822,4]
[334991856,1723716634020,-153.041908,0.00023825,7]
[334991857,1723716634029,-151.0,0.00023825,7]
[334991858,1723716634039,-151.0,0.00023825,7]
[334991859,1723716634048,-151.55203,0.00023825,7]
[334991860,1723716634058,-26556.8086037,0.00023825,4]
[334991861,1723716634067,-167116.66256932,0.00023825,4]
[334991862,1723716634084,-1033.7,0.00023825,4]
[334991864,1723716638031,-249.0637997,0.00013052,2]
[334991865,1723716638041,-158.9447989,0.00023029,2]
[334991866,1723716638051,-915.0552011,0.00023029,2]
[334991867,1723716638061,-161.6447989,0.00023593,2]
[334991868,1723716638072,-1154.54016205,0.00023593,2]
[334991869,1723716638083,-301.11415239,0.00023593,2]
[334991870,1723716638261,-1039.02933783,0.00023593,2]
[334991871,1723716638273,-1249.1832568,0.00023593,2]
[334991872,1723716638284,-1569.15790847,0.00023593,2]
[334991873,1723716638294,-18460.32298365,0.00023825,4]
[334991874,1723716638305,-7289.45053679,0.00023825,4]
[334991875,1723716638316,-24868.45049424,0.00023825,4]
[334991876,1723716638326,-151.49,0.00023825,2]
[334991877,1723716638336,-151.49,0.00023825,2]
[334991878,1723716638345,-257.77001758,0.0002383,2]
[334991879,1723716638355,-1845.2410387,0.00023831,2]
[334991880,1723716638365,-155.33247637,0.00023832,2]
[334991881,1723716638381,-500.0,0.00023835,7]
[334991882,1723716638393,-500.0,0.00023835,7]
[334991883,1723716638402,-500.0,0.00023835,7]
[334991884,1723716638412,-500.0,0.00023835,7]
[334991885,1723716638421,-498.14637493,0.00023835,7]
[334991886,1723716638430,-500.0,0.00023835,7]
[334991887,1723716638439,-500.0,0.00023835,7]
[334991888,1723716638449,-501.45472917,0.00023835,7]
[334991889,1723716638458,-649.9768514,0.00023835,7]
[334991890,1723716638467,-502.98219683,0.00023835,7]
[334991891,1723716638477,-500.72362761,0.00023835,7]
[334991892,1723716638486,-496.59728672,0.00023835,7]
[334991893,1723716638495,-300.0,0.00023835,7]
[334991894,1723716638505,-300.0,0.00023835,7]
[334991895,1723716638514,-301.13283663,0.00023835,7]
[334991896,1723716638523,-500.0,0.00023835,7]
[334991897,1723716638533,-480.69842665,0.00023835,7]
[334991898,1723716638542,-500.0,0.00023835,7]
[334991899,1723716638552,-508.83311008,0.00023835,7]
[334991900,1723716638563,-573.10786222,0.00023835,2]
[334991901,1723716638573,-208.83191032,0.00023835,7]
[334991902,1723716638582,-502.75644757,0.00023835,7]
[334991903,1723716638591,-501.07965549,0.00023835,7]
[334991904,1723716638600,-2000.0,0.00023835,2]
[334991905,1723716638609,-200.0,0.00023835,2]
[334991906,1723716638619,-1000.0,0.00023835,2]
[334991909,1723716638631,-1000.0,0.00023835,2]
[334991912,1723716638640,-1001.73269049,0.00023835,2]
[334991915,1723716638649,-500.0,0.00023835,7]
[334991918,1723716638658,-500.0,0.00023835,7]
[334991921,1723716638666,-500.0,0.00023835,7]
[334991922,1723716638676,-500.0,0.00023835,7]
[334991925,1723716638685,-600.40840648,0.00023835,7]
[334991927,1723716638694,-431.40776576,0.00023835,7]
[334991929,1723716638703,-79.92035871,0.00023835,7]
[334991932,1723716638718,-420.07964129,0.00023835,7]
[334991934,1723716638728,-500.0,0.00023835,7]
[334991936,1723716638739,-500.0,0.00023835,7]